bitfinex/quotes_SOLUSD_20240702
["timestamp","ask_amount","ask_price","bid_price","bid_amount"]
[1719929588379,0.94743699,148.23,148.09,142.9792]
[1719929588676,6.7455,148.25,148.11,120.31]
[1719929588877,0.94743699,148.24,148.12,6.4008]
[1719929589072,0.94743699,148.27,148.13,15.3582]
[1719929589272,6.7482,148.31,148.13,15.3582]
[1719929589273,0.94743699,148.26,148.13,15.3582]
[1719929589499,0.94743699,148.3,148.13,15.3582]
[1719929589685,6.7461,148.24,148.14,45.0]
[1719929589889,0.94743699,148.23,148.14,45.0]
[1719929590102,6.7449,148.26,148.14,45.0]
[1719929590287,0.94743699,148.25,148.14,45.0]
[1719929590491,0.94743699,148.3,148.15,100.0]
[1719929590691,0.94743699,148.29,148.15,100.0]
[1719929590904,0.94743699,148.32,148.16,6.0556]
[1719929591481,6.7448,148.27,148.16,51.0556]
[1719929592404,6.7458,148.24,148.16,51.0556]
[1719929592598,0.94743699,148.23,148.16,6.0556]
[1719929592904,20.94743699,148.28,148.16,6.0556]
[1719929593199,6.7445,148.27,148.16,6.0556]
[1719929593399,0.94743699,148.26,148.16,6.0556]
[1719929593607,0.94743699,148.31,148.16,6.0556]
[1719929593787,0.94743699,148.31,148.17,100.0]
[1719929593997,6.7417,148.33,148.16,148.2756]
[1719929594184,0.94743699,148.32,148.17,60.3977]
[1719929594509,6.7448,148.27,148.17,15.3977]
[1719929594706,0.94743699,148.26,148.17,15.3977]
[1719929594904,0.94743699,148.3,148.18,100.0]
[1719929595108,6.7423,148.32,148.17,115.3977]
[1719929595283,7.68893699,148.34,148.19,220.31]
[1719929595486,0.94743699,148.34,148.2,6.3263]
[1719929595680,0.94743699,148.34,148.2,51.3263]
[1719929595916,0.94743699,148.37,148.22,100.0]
[1719929596206,0.94743699,148.37,148.2,151.3263]
[1719929596390,6.741,148.35,148.25,15.185]
[1719929596589,0.94743699,148.34,148.25,15.185]
[1719929596990,17.79603699,148.38,148.25,15.185]
[1719929597196,6.7413,148.34,148.25,15.185]
[1719929597383,0.94743699,148.33,148.25,15.185]
[1719929597591,0.94743699,148.32,148.25,15.185]
[1719929597904,0.94743699,148.34,148.25,15.185]
[1719929598106,0.94743699,148.33,148.25,15.185]
[1719929598313,0.94743699,148.32,148.2,22.0169]
[1719929598615,16.8568,148.31,148.2,22.0169]
[1719929598819,6.745,148.26,148.2,22.0169]
[1719929599131,0.94743699,148.3,148.2,22.0169]
[1719929599306,0.94743699,148.29,148.2,22.0169]
[1719929599617,0.94743699,148.28,148.21,1.34890406]
[1719929599817,6.7433,148.3,148.2,22.0169]
[1719929600022,6.92910821,148.38,148.28,42.22]
[1719929600203,42.5463,148.54,148.36,6.6119]
[1719929600397,6.7433,148.51,148.37,1.34769209]
[1719929600598,6.918922,148.49,148.37,1.34755352]
[1719929600914,16.8363,148.49,148.38,6.7394]
[1719929601101,16.8363,148.49,148.36,6.6119]
[1719929601312,6.7363,148.45,148.36,6.6119]
[1719929601508,6.7353,148.48,148.37,16.4857]
[1719929601707,6.7355,148.47,148.37,61.4857]
[1719929601906,6.7355,148.47,148.37,16.4857]
[1719929602223,16.833,148.52,148.37,16.4857]
[1719929602408,6.7367,148.44,148.37,16.4857]
[1719929602610,23.75627887,148.5,148.37,16.4857]
[1719929602611,6.7363,148.45,148.37,16.4857]
[1719929603094,16.8388,148.47,148.37,16.4857]
[1719929603297,6.7394,148.38,148.36,6.6119]
[1719929603600,6.92057887,148.5,148.31,15.8784]
[1719929603601,6.7399,148.37,148.31,15.8784]
[1719929603800,16.8411,148.45,148.31,15.8784]
[1719929604010,6.92057887,148.5,148.32,1.34796107]
[1719929604213,6.7354,148.47,148.31,115.8784]
[1719929604510,6.92057887,148.5,148.31,115.8784]
[1719929604706,6.7361,148.46,148.31,115.8784]
[1719929605028,6.7359,148.46,148.32,1.34753301]
[1719929605202,6.7352,148.48,148.33,101.34749622]
[1719929605404,0.8325163,148.53,148.36,6.4262]
[1719929605727,6.7336,148.51,148.38,16.6146]
[1719929606030,0.8325163,148.53,148.38,16.6146]
[1719929606211,0.8325163,148.53,148.39,242.22]
[1719929606421,7.5651163,148.53,148.41,100.0]
[1719929606720,0.8325163,148.53,148.4,6.5518]
[1719929606924,6.734,148.5,148.41,45.0]
[1719929607220,0.8325163,148.53,148.41,45.0]
[1719929607423,7.5655163,148.53,148.41,45.0]
[1719929607607,0.8325163,148.53,148.41,45.0]
[1719929607808,7.5655163,148.53,148.41,45.0]
[1719929608122,7.5653163,148.53,148.41,45.0]
[1719929608325,6.7332,148.52,148.41,45.0]
[1719929608626,6.734,148.5,148.41,45.0]
[1719929609223,6.7359,148.46,148.4,6.5518]
[1719929609608,6.7363,148.45,148.4,6.5518]
[1719929610126,16.8331,148.52,148.4,6.5518]
[1719929610303,6.7349,148.48,148.4,6.5518]
[1719929610625,16.8331,148.52,148.4,6.5518]
[1719929611012,6.735,148.48,148.4,6.5518]
[1719929611216,6.7348,148.49,148.41,1.34725409]
[1719929611524,6.7352,148.48,148.4,6.5518]
[1719929611726,0.8325163,148.53,148.4,6.5518]
[1719929612109,0.8325163,148.53,148.4,69.0818]
[1719929612308,0.8325163,148.53,148.4,48.7718]
[1719929612724,6.7334,148.52,148.41,45.0]
[1719929614022,0.8325163,148.53,148.42,16.3984]
[1719929614227,0.8325163,148.53,148.43,45.0]
[1719929614409,7.5653163,148.53,148.43,45.0]
[1719929614727,0.8325163,148.53,148.43,45.0]
[1719929615133,6.7331,148.52,148.43,45.0]
[1719929615307,7.5652163,148.53,148.43,45.0]
[1719929615514,0.8325163,148.53,148.43,145.0]
[1719929616230,0.8325163,148.53,148.45,100.0]
[1719929617114,0.8325163,148.53,148.46,45.0]
[1719929619945,0.8325163,148.53,148.44,48.3302]
[1719929619946,6.7336,148.51,148.44,6.1102]
[1719929620234,0.8325163,148.53,148.44,6.1102]
[1719929620408,6.7338,148.51,148.44,6.1102]
[1719929620936,6.7332,148.52,148.45,1.34682635]
[1719929621110,7.5651163,148.53,148.46,1.34682635]
[1719929621306,0.8325163,148.53,148.46,1.34682635]
[1719929621507,0.8325163,148.53,148.45,45.0]
[1719929622819,0.8325163,148.53,148.46,16.5132]
[1719929623029,6.7304,148.58,148.47,6.0356]
[1719929623230,6.7313,148.56,148.47,6.0356]
[1719929623431,16.8231,148.61,148.47,6.0356]
[1719929624116,6.7304,148.58,148.47,6.0356]
[1719929624513,6.7304,148.58,148.48,15.5664]
[1719929624711,6.731,148.57,148.48,15.5664]
[1719929625028,6.73,148.59,148.49,1.34622717]
[1719929625227,6.91763029,148.63,148.48,60.5664]
[1719929625437,6.7295,148.6,148.49,6.279]
[1719929625613,6.7295,148.6,148.5,45.0]
[1719929625811,6.7291,148.61,148.5,45.0]
[1719929626032,16.8186,148.65,148.5,45.0]
[1719929626343,6.91688794,148.66,148.49,6.279]
[1719929626344,33.6405,148.64,148.49,6.279]
[1719929626634,6.7318,148.55,148.49,6.279]
[1719929626822,6.7328,148.53,148.49,6.279]
[1719929627439,16.8301,148.55,148.48,15.5664]
[1719929627611,6.7335,148.51,148.48,15.5664]
[1719929627811,6.7336,148.51,148.48,15.5664]
[1719929628819,16.8301,148.55,148.48,15.5664]
[1719929629150,6.7336,148.51,148.48,15.5664]
[1719929629439,16.8301,148.55,148.48,15.5664]
[1719929629440,6.7343,148.5,148.48,15.5664]
[1719929629612,6.7344,148.49,148.48,15.5664]
[1719929630035,6.7344,148.49,148.45,6.6171]
[1719929630414,16.8319,148.53,148.45,6.6171]
[1719929630617,6.7343,148.5,148.45,6.6171]
[1719929631319,6.7337,148.51,148.45,6.6171]
[1719929632038,6.7332,148.52,148.45,6.6171]
[1719929632210,6.7332,148.52,148.46,45.0]
[1719929632633,33.6617,148.54,148.43,6.2191]
[1719929632810,6.7349,148.49,148.43,6.2191]
[1719929633015,6.7348,148.49,148.43,6.2191]
[1719929633240,6.7355,148.47,148.43,6.2191]
[1719929633421,16.833,148.52,148.43,6.2191]
[1719929633845,6.7357,148.47,148.43,6.2191]
[1719929634143,33.6607,148.55,148.43,6.2191]
[1719929634144,6.7359,148.46,148.43,6.2191]
[1719929634326,6.7352,148.48,148.43,6.2191]
[1719929634525,6.7345,148.49,148.43,6.2191]
[1719929634840,16.8325,148.53,148.43,6.2191]
[1719929635222,6.7341,148.5,148.43,6.2191]
[1719929635429,16.8325,148.53,148.43,6.2191]
[1719929635430,6.7345,148.49,148.43,6.2191]
[1719929635630,16.8325,148.53,148.43,6.2191]
[1719929635833,6.7342,148.5,148.44,45.0]
[1719929636151,6.7337,148.51,148.44,45.0]
[1719929636538,6.7327,148.53,148.44,45.0]
[1719929636851,6.7332,148.52,148.44,45.0]
[1719929637235,6.7325,148.54,148.44,45.0]
[1719929637442,16.8291,148.56,148.44,45.0]
[1719929637633,6.7333,148.52,148.44,45.0]
[1719929638234,6.7342,148.5,148.44,45.0]
[1719929638434,16.8309,148.54,148.44,45.0]
[1719929638649,6.7344,148.5,148.44,45.0]
[1719929639185,6.7345,148.49,148.43,6.2191]
[1719929639357,16.833,148.52,148.43,6.2191]
[1719929639533,6.7346,148.49,148.43,6.2191]
[1719929639942,16.8352,148.5,148.43,6.2191]
[1719929640251,6.7379,148.42,148.4,15.9079]
[1719929640453,41.2371,148.53,148.4,15.9079]
[1719929640657,20.0,148.52,148.4,15.9079]
[1719929640845,6.7358,148.46,148.4,15.9079]
[1719929641044,16.8346,148.51,148.4,15.9079]
[1719929641252,6.7356,148.47,148.4,15.9079]
[1719929641555,20.0,148.52,148.4,15.9079]
[1719929641556,16.8368,148.49,148.4,15.9079]
[1719929641732,16.8368,148.49,148.38,6.2979]
[1719929641733,33.9984,148.5,148.36,15.9916]
[1719929641946,20.0,148.49,148.36,15.9916]
[1719929642431,16.8333,148.52,148.36,15.9916]
[1719929642648,16.8354,148.5,148.37,6.3839]
[1719929643232,6.7343,148.5,148.38,45.0]
[1719929643434,16.8287,148.56,148.38,199.37]
[1719929643647,48.12351783,148.58,148.37,6.3839]
[1719929643959,6.7344,148.5,148.39,100.0]
[1719929644260,16.8321,148.53,148.37,106.3839]
[1719929644463,6.7345,148.49,148.37,106.3839]
[1719929644757,16.8286,148.56,148.39,100.0]
[1719929644960,7.04493681,148.58,148.43,16.4574]
[1719929645136,6.7312,148.57,148.45,6.1839]
[1719929645345,7.5732,148.63,148.45,6.1839]
[1719929645550,6.7309,148.57,148.45,6.1839]
[1719929645740,6.7314,148.56,148.46,45.0]
[1719929646345,6.7309,148.57,148.46,45.0]
[1719929646558,16.8242,148.6,148.46,45.0]
[1719929646933,6.7316,148.56,148.46,45.0]
[1719929647846,6.7318,148.55,148.46,45.0]
[1719929648165,16.8242,148.6,148.46,45.0]
[1719929648351,6.7313,148.56,148.46,45.0]
[1719929648552,6.89896259,148.62,148.48,106.5204]
[1719929648852,50.4591,148.64,148.49,45.0]
[1719929649048,23.73145062,148.64,148.49,45.0]
[1719929649250,6.7299,148.59,148.49,45.0]
[1719929649453,6.7298,148.6,148.49,45.0]
[1719929649662,6.73,148.59,148.49,45.0]
[1719929649869,6.91135062,148.64,148.5,100.0]
[1719929650164,0.8325163,148.68,148.53,16.5073]
[1719929650847,16.8173,148.66,148.53,16.5073]
[1719929651050,6.7294,148.61,148.53,16.5073]
[1719929651251,6.7287,148.62,148.54,45.0]
[1719929651450,0.8325163,148.68,148.53,16.5073]
[1719929651970,6.7288,148.62,148.53,16.5073]
[1719929652476,6.7282,148.63,148.53,16.5073]
[1719929652657,6.7282,148.63,148.54,45.0]
[1719929652971,6.7275,148.65,148.54,45.0]
[1719929653145,6.7277,148.64,148.54,45.0]
[1719929653345,6.7295,148.6,148.54,45.0]
[1719929653562,0.8325163,148.68,148.53,16.5073]
[1719929653762,0.8325163,148.68,148.52,6.5337]
[1719929653763,6.7326,148.53,148.52,6.5337]
[1719929654065,16.8252,148.59,148.48,21.5975]
[1719929654239,5.87697108,148.67,148.48,21.5975]
[1719929654443,33.6363,148.65,148.48,21.5975]
[1719929654649,6.7308,148.57,148.48,21.5975]
[1719929655061,16.8231,148.61,148.48,21.5975]
[1719929655062,6.7313,148.56,148.48,21.5975]
[1719929655261,6.7305,148.58,148.48,21.5975]
[1719929655580,6.73,148.59,148.49,45.0]
[1719929655868,16.8187,148.65,148.49,45.0]
[1719929656170,0.8325163,148.68,148.51,6.2106]
[1719929656171,6.7278,148.64,148.51,6.2106]
[1719929656366,6.7281,148.63,148.51,6.2106]
[1719929656869,6.7291,148.61,148.51,6.2106]
[1719929657074,16.8196,148.64,148.51,6.2106]
[1719929657448,6.7291,148.61,148.51,6.2106]
[1719929657769,0.8325163,148.68,148.52,22.6216]
[1719929657979,0.8325163,148.68,148.52,122.6216]
[1719929658151,0.8325163,148.68,148.52,167.6216]
[1719929658557,0.8325163,148.68,148.52,67.6216]
[1719929658756,6.729,148.62,148.56,23.5589]
[1719929659158,6.7298,148.6,148.54,6.7318]
[1719929659564,6.73,148.59,148.54,6.7318]
[1719929659778,0.3263,148.67,148.52,22.6216]
[1719929659954,6.7313,148.56,148.52,22.6216]
[1719929660149,16.8243,148.6,148.52,22.6216]
[1719929660354,6.7313,148.56,148.52,22.6216]
[1719929660569,6.7309,148.57,148.52,22.6216]
[1719929660777,6.9039194,148.59,148.52,22.6216]
[1719929660974,6.9039194,148.59,148.53,6.7324]
[1719929661173,6.7295,148.6,148.55,6.7316]
[1719929661374,6.91082716,148.63,148.54,16.8301]
[1719929661701,50.4515,148.66,148.54,16.8301]
[1719929661702,6.73,148.59,148.54,16.8301]
[1719929661879,6.73,148.59,148.54,23.5622]
[1719929662084,6.90768148,148.63,148.55,6.7317]
[1719929662261,6.7285,148.62,148.56,6.7309]
[1719929662768,6.7307,148.58,148.52,22.6216]
[1719929662963,6.90768148,148.63,148.52,6.6108]
[1719929663179,16.8277,148.57,148.52,6.6108]
[1719929663490,16.8277,148.57,148.48,22.0078]
[1719929663780,16.8277,148.57,148.48,28.7427]
[1719929663781,6.7322,148.54,148.48,28.7427]
[1719929663979,6.7322,148.54,148.49,6.7343]
[1719929664158,16.8277,148.57,148.48,28.7425]
[1719929664358,16.8245,148.6,148.51,6.7331]
[1719929664583,6.7313,148.56,148.5,6.7337]
[1719929664790,6.7317,148.55,148.5,6.7339]
[1719929665159,6.7317,148.55,148.49,23.5697]
[1719929665365,6.7317,148.55,148.5,6.734]
[1719929666114,6.7313,148.56,148.51,6.7332]
[1719929666883,6.7313,148.56,148.49,16.8353]
[1719929667182,16.8263,148.58,148.48,22.0078]
[1719929667390,6.7331,148.52,148.48,22.0078]
[1719929667596,6.7344,148.5,148.48,6.3216]
[1719929667879,6.7332,148.52,148.48,6.3216]
[1719929668088,6.7336,148.51,148.48,6.3216]
[1719929668382,49.848,148.6,148.48,6.3216]
[1719929668383,6.7331,148.52,148.48,6.3216]
[1719929668786,6.7336,148.51,148.48,6.3216]
[1719929668995,16.8295,148.55,148.48,6.3216]
[1719929669286,6.7335,148.52,148.48,6.3216]
[1719929669480,6.7328,148.53,148.48,6.3216]
[1719929669993,6.7338,148.51,148.48,6.3216]
[1719929670173,6.734,148.5,148.48,6.3216]
[1719929670569,16.8307,148.54,148.48,6.3216]
[1719929670776,16.8353,148.5,148.44,6.5791]
[1719929670988,6.7341,148.5,148.44,13.3156]
[1719929671192,6.7348,148.49,148.44,6.5791]
[1719929671365,16.8323,148.53,148.44,6.5791]
[1719929671566,6.7355,148.47,148.44,6.5791]
[1719929671893,16.8312,148.54,148.44,6.5791]
[1719929672201,6.7347,148.49,148.44,6.5791]
[1719929672393,16.8331,148.52,148.44,6.5791]
[1719929672776,6.7352,148.48,148.44,6.5791]
[1719929673190,6.7355,148.47,148.44,6.5791]
[1719929673518,6.7347,148.49,148.44,6.5791]
[1719929673682,6.7349,148.48,148.44,6.5791]
[1719929673882,6.7345,148.49,148.44,6.5791]
[1719929674083,16.8331,148.52,148.44,13.3157]
[1719929674283,6.7343,148.5,148.44,13.3157]
[1719929674517,6.7346,148.49,148.44,13.3157]
[1719929674820,6.9036993,148.53,148.44,6.5791]
[1719929675183,5.55067108,148.59,148.44,6.5791]
[1719929675184,33.6502,148.59,148.44,6.5791]
[1719929675384,6.7334,148.52,148.46,6.7354]
[1719929675599,6.734,148.5,148.44,30.157]
[1719929675791,16.8323,148.53,148.44,6.5791]
[1719929675979,6.7348,148.49,148.44,6.5791]
[1719929676182,23.73686151,148.53,148.44,6.5791]
[1719929676183,6.7339,148.51,148.44,6.5791]
[1719929676383,6.7339,148.51,148.45,6.7359]
[1719929676602,6.7331,148.52,148.46,6.7356]
[1719929676810,6.9097121,148.54,148.45,23.5764]
[1719929677310,6.7327,148.53,148.47,6.7352]
[1719929677504,6.7327,148.53,148.48,6.7349]
[1719929677686,13.6420121,148.54,148.48,6.7349]
[1719929677889,6.732,148.55,148.49,23.5702]
[1719929678087,33.0229,148.6,148.49,23.5702]
[1719929678315,23.73491842,148.58,148.49,16.8358]
[1719929678608,6.7332,148.52,148.47,6.7352]
[1719929678806,6.7332,148.52,148.47,6.7353]
[1719929679193,6.7332,148.52,148.46,23.5744]
[1719929679489,16.8311,148.54,148.44,6.5791]
[1719929679689,6.90871842,148.58,148.44,6.5791]
[1719929679690,6.7362,148.45,148.44,6.5791]
[1719929679997,45.0,148.53,148.44,6.5791]
[1719929680195,16.8344,148.51,148.44,6.5791]
[1719929680789,16.8367,148.49,148.44,6.5791]
[1719929681111,6.7364,148.45,148.39,13.0172]
[1719929681316,6.7355,148.47,148.41,6.7377]
[1719929682023,6.7362,148.46,148.4,16.846]
[1719929682308,16.832,148.53,148.42,16.8434]
[1719929682514,6.7347,148.49,148.43,6.7367]
[1719929682692,20.0,148.52,148.43,6.7367]
[1719929683016,6.7347,148.49,148.43,6.7367]
[1719929683203,6.7347,148.49,148.42,16.8434]
[1719929683204,16.8286,148.56,148.47,12.763]
[1719929683408,6.7323,148.54,148.48,6.7347]
[1719929683602,6.733,148.53,148.47,28.9845]
[1719929683805,6.733,148.53,148.48,6.7348]
[1719929684002,6.7323,148.54,148.48,6.7348]
[1719929684246,6.732,148.55,148.49,51.7343]
[1719929684423,6.7311,148.57,148.51,6.7335]
[1719929684713,6.90871842,148.58,148.5,23.5684]
[1719929684714,6.7314,148.56,148.5,23.5684]
[1719929684916,6.7322,148.54,148.49,51.7343]
[1719929685093,6.7331,148.52,148.47,45.822]
[1719929685513,6.90871842,148.58,148.48,45.0]
[1719929685686,6.90871842,148.58,148.49,23.57]
[1719929685892,6.90871842,148.58,148.5,6.7335]
[1719929686093,16.8265,148.58,148.48,45.0]
[1719929686305,6.7326,148.53,148.48,45.0]
[1719929686506,6.734,148.5,148.47,22.2493]
[1719929686700,6.7325,148.54,148.48,6.7344]
[1719929687230,6.7323,148.54,148.48,6.7347]
[1719929687422,6.7322,148.54,148.49,6.7344]
[1719929687721,6.7322,148.54,148.48,6.7347]
[1719929688013,6.7328,148.53,148.47,45.8224]
[1719929688210,6.7331,148.52,148.47,39.0872]
[1719929689418,16.8309,148.54,148.47,22.2493]
[1719929689611,50.4836,148.57,148.47,22.2493]
[1719929689797,6.7333,148.52,148.47,22.2493]
[1719929690316,6.7338,148.51,148.47,22.2493]
[1719929690507,6.7341,148.5,148.47,22.2493]
[1719929690709,6.734,148.5,148.47,22.2493]
[1719929690909,6.7336,148.51,148.47,22.2493]
[1719929691204,16.8298,148.55,148.47,22.2493]
[1719929691402,6.7345,148.49,148.47,22.2493]
[1719929691602,6.7341,148.5,148.47,22.2493]
[1719929691799,6.7349,148.48,148.47,6.028]
[1719929692018,6.7349,148.48,148.43,21.1365]
[1719929692527,16.8352,148.5,148.43,21.1365]
[1719929692818,33.6636,148.53,148.43,6.0713]
[1719929692819,6.7359,148.46,148.43,6.0713]
[1719929693626,16.8347,148.51,148.43,6.0713]
[1719929694098,6.74046723,148.54,148.43,22.9134]
[1719929694099,23.57126723,148.54,148.43,22.9134]
[1719929694300,16.8332,148.52,148.43,6.0713]
[1719929694512,16.8332,148.52,148.43,12.8082]
[1719929694833,6.7349,148.48,148.43,12.8082]
[1719929695025,16.8352,148.5,148.43,6.0713]
[1719929695205,6.7361,148.46,148.43,6.0713]
[1719929695400,6.7358,148.46,148.43,6.0713]
[1719929695921,16.8352,148.5,148.43,6.0713]
[1719929696225,33.664,148.53,148.39,22.5835]
[1719929696226,6.7368,148.44,148.39,22.5835]
[1719929696408,6.7363,148.45,148.39,29.322]
[1719929696601,6.7377,148.42,148.39,22.5835]
[1719929696911,6.7367,148.44,148.39,22.5835]
[1719929697112,16.8393,148.47,148.39,22.5835]
[1719929697314,6.7379,148.42,148.39,22.5835]
[1719929697623,16.8393,148.47,148.39,22.5835]
[1719929697805,6.7366,148.45,148.4,6.7385]
[1719929698121,6.91768584,148.48,148.39,22.5835]
[1719929698301,13.65268584,148.48,148.42,6.7373]
[1719929698507,6.7354,148.47,148.42,6.7373]
[1719929698729,6.7354,148.47,148.41,24.92983061]
[1719929698915,6.91705396,148.5,148.41,16.8445]
[1719929699116,6.7351,148.48,148.42,51.7374]
[1719929699302,6.91705396,148.5,148.41,23.5825]
[1719929699622,6.91705396,148.5,148.42,6.7376]
[1719929699623,6.7357,148.47,148.42,6.7376]
[1719929699824,6.7358,148.46,148.4,16.8459]
[1719929700116,6.7362,148.45,148.4,23.5842]
[1719929700321,6.7359,148.46,148.41,6.738]
[1719929700523,6.7359,148.46,148.4,23.5844]
[1719929700713,16.8364,148.49,148.39,22.5835]
[1719929700914,16.8391,148.47,148.39,22.5835]
[1719929701301,16.8413,148.45,148.39,22.5835]
[1719929701502,6.739,148.39,148.35,6.4611]
[1719929701733,6.7382,148.41,148.35,23.3126]
[1719929701923,16.8445,148.42,148.35,6.4611]
[1719929702123,6.7386,148.4,148.35,6.4611]
[1719929702310,6.7381,148.41,148.35,13.2019]
[1719929702506,6.7388,148.4,148.35,6.4611]
[1719929702710,6.739,148.39,148.35,6.4611]
[1719929702910,16.8432,148.43,148.35,6.4611]
[1719929702911,6.7382,148.41,148.35,6.4611]
[1719929703128,6.7377,148.42,148.35,6.4611]
[1719929703331,0.3263,148.42,148.31,6.5517]
[1719929703632,0.3263,148.42,148.28,6.5517]
[1719929703633,45.0,148.38,148.28,6.5517]
[1719929703831,6.7434,148.3,148.28,6.5517]
[1719929704024,6.7413,148.34,148.28,6.5517]
[1719929704264,6.7413,148.34,148.28,13.2956]
[1719929704520,6.7409,148.35,148.29,6.7434]
[1719929704708,7.60467511,148.37,148.28,6.5517]
[1719929704911,20.0,148.36,148.28,6.5517]
[1719929705132,7.60467511,148.37,148.28,6.5517]
[1719929705133,6.7435,148.29,148.28,6.5517]
[1719929705337,45.0,148.35,148.26,15.9174]
[1719929705513,6.7435,148.29,148.26,15.9174]
[1719929706538,6.744,148.28,148.25,6.3734]
[1719929707113,16.8525,148.35,148.25,6.3734]
[1719929707443,6.7419,148.33,148.26,16.8613]
[1719929707614,6.7423,148.32,148.26,23.606]
[1719929707917,6.7433,148.3,148.25,6.3734]
[1719929708121,20.0,148.34,148.25,6.3734]
[1719929708718,6.7425,148.32,148.26,6.7446]
[1719929708932,6.7429,148.31,148.25,23.2361]
[1719929709130,6.92138979,148.34,148.25,23.2361]
[1719929709318,6.7418,148.33,148.26,45.0]
[1719929709534,23.77508979,148.34,148.25,6.3734]
[1719929709834,6.92138979,148.34,148.25,6.3734]
[1719929710031,6.7425,148.32,148.26,6.7445]
[1719929710223,6.7418,148.33,148.27,6.7443]
[1719929710410,24.45477511,148.37,148.26,16.8615]
[1719929710411,6.7412,148.35,148.29,6.7433]
[1719929710627,8.84108533,148.38,148.28,45.0]
[1719929710628,6.91874393,148.38,148.28,45.0]
[1719929710825,6.7406,148.36,148.3,6.7429]
[1719929711026,6.7409,148.35,148.29,23.6014]
[1719929711251,16.8506,148.37,148.28,45.0]
[1719929711453,16.8506,148.37,148.26,16.4235]
[1719929711668,6.7415,148.34,148.28,6.7439]
[1719929711875,6.7411,148.35,148.3,16.8571]
[1719929712164,6.7416,148.34,148.28,6.7439]
[1719929712466,6.7412,148.34,148.28,6.7438]
[1719929712630,6.7409,148.35,148.29,6.7435]
[1719929713439,6.7409,148.35,148.3,6.743]
[1719929713730,6.7409,148.35,148.29,6.7434]
[1719929714753,16.7205,148.37,148.24,6.3274]
[1719929714956,6.7414,148.34,148.28,6.7439]
[1719929715262,8.84108533,148.37,148.29,16.858]
[1719929715430,6.91874393,148.38,148.29,16.858]
[1719929715630,6.91874393,148.38,148.31,6.7423]
[1719929715851,6.7404,148.36,148.3,22.4065]
[1719929716766,6.7408,148.35,148.3,15.6636]
[1719929717257,23.76784393,148.38,148.3,15.6636]
[1719929717467,6.7418,148.33,148.27,6.7443]
[1719929717634,32.60892926,148.38,148.27,6.7443]
[1719929717830,16.8537,148.34,148.26,15.7671]
[1719929718556,6.7413,148.34,148.28,6.7438]
[1719929718743,6.7414,148.34,148.28,6.7438]
[1719929718950,6.7409,148.35,148.29,6.7434]
[1719929719168,6.7418,148.33,148.27,16.8604]
[1719929719341,8.84108533,148.37,148.26,15.7671]
[1719929719543,6.7412,148.34,148.28,16.8596]
[1719929719756,8.84108533,148.37,148.28,16.8596]
[1719929719963,6.7412,148.34,148.29,6.7435]
[1719929720171,8.84108533,148.37,148.3,6.743]
[1719929720357,8.84108533,148.37,148.3,16.8573]
[1719929720664,6.7407,148.36,148.3,23.6003]
[1719929720863,8.84108533,148.37,148.27,16.8601]
[1719929721072,8.84108533,148.37,148.28,6.7438]
[1719929721258,6.7417,148.33,148.28,6.7438]
[1719929721570,6.7417,148.33,148.28,6.7439]
[1719929721883,6.743,148.3,148.26,15.7671]
[1719929722171,6.7427,148.31,148.26,15.7671]
[1719929722771,51.92573398,148.36,148.26,15.7671]
[1719929722772,6.7421,148.32,148.26,15.7671]
[1719929722964,6.7421,148.32,148.26,22.5117]